[Event "Festival Groningen-A 2024"]
[Site "Groningen"]
[Date "2024.12.21"]
[Round "1.10"]
[White "Keuning, Selwin"]
[Black "Maatman, Nick"]
[Result "0-1"]
[ECO "B22"]
[WhiteElo "2180"]
[BlackElo "2375"]
[Annotator "TA"]
[PlyCount "136"]
[EventDate "2024.12.21"]
[EventType "swiss"]
[EventCountry "NED"]
[SourceTitle "playchess.com"]
[Source "ChessBase"]
[SourceQuality "1"]
[TimeControl "40/5400+30:1800+30"]

{[%evp 41,136,-14,-23,-35,-24,-35,-13,-9,-20,-66,-33,-89,-25,-24,-26,-24,-10,-27,-37,-76,-70,-63,-4,-66,-17,-33,-35,-107,-120,-109,-87,-212,-211,-398,-393,-375,-219,-427,-254,-264,-261,-271,-271,-266,-74,-106,-107,-104,-91,-91,-92,-92,-92,-97,-81,-81,-81,-70,-8,-8,-8,-8,-8,-8,-8,-8,-8,-8,-8,-8,-8,-29,-29,-75,-75,-75,-29,-75,-75,-75,-75,-175,-95,-572,-95,-1112,-1068,-4691,-6037,-29964,-29971,-29975,-29969,-29965,-29967,-7056,-6542]} 1. e4 {[%emt 0:00:06]} c5 {[%emt 0:00:03]} 2. c3 {[%emt 0:00:15]} Nf6 {[%emt 0:00:09]} 3. e5 {[%emt 0:00:19]} Nd5 {[%emt 0:00:02]} 4. Nf3 {[%emt 0:00:54]} d6 {[%emt 0:00:42]} 5. d4 {[%emt 0:00:41]} cxd4 {[%emt 0:01:10]} 6. cxd4 {[%emt 0:01:29]} Nc6 {[%emt 0:00:06]} 7. Bc4 {[%emt 0:00:11]} dxe5 {[%emt 0:00:45]} 8. Nxe5 {[%emt 0:00:17]} e6 {[%emt 0:00:05]} 9. O-O {[%emt 0:00:18]} Be7 {[%emt 0:01:32]} 10. Nxc6 {[%emt 0:00:30]} bxc6 {[%emt 0:00:01]} 11. Nc3 {[%emt 0:00:24]} O-O {[%emt 0:01:03]} 12. Qd3 {[%emt 0:02:58]} a5 {[%emt 0:03:27]} 13. Rd1 {[%emt 0:02:23]} a4 {[%emt 0:13:53]} 14. Qe4 {[%emt 0:17:49]} Ba6 {[%emt 0:04:12]} 15. Bd3 {[%emt 0:04:39]} Bxd3 {[%emt 0:03:02]} 16. Rxd3 {[%emt 0:02:43]} Nxc3 {[%emt 0:03:05]} 17. Rxc3 {[%emt 0:11:59]} Qd5 {[%emt 0:00:59]} 18. Qc2 {[%emt 0:02:24]} Bf6 {[%emt 0:17:29]} 19. Be3 {[%emt 0:06:37]} Rfb8 {[%emt 0:00:57]} 20. Rc5 {[%emt 0:20:49]} Rxb2 {[%emt 0:16:17]} 21. Qc1 {[%emt 0:03:37]} Qd6 $1 {[%emt 0:00:13]} 22. Rxc6 {[%emt 0:02:07]} Qd5 {[%emt 0:10:45]} 23. Rc5 {[%emt 0:05:09]} Qb7 {[%emt 0:00:01]} (23... Rxa2 $2 24. Rc8+ (24. Rxd5 Rxa1 25. Qxa1 exd5 $18) 24... Bd8 25. Rxa2 $18) 24. Rc7 {[%emt 0:01:26]} Qb8 {[%emt 0:00:03]} 25. a3 {[%emt 0:06:44]} (25. g3 $11) 25... Rb3 {[%emt 0:02:17]} 26. g3 {[%emt 0:03:55]} (26. Qc6 $15) 26... h6 {[%emt 0:01:34]} (26... Bd8 $17 27. Rc4 Be7) 27. Qc6 $11 {[%emt 0:01:15]} Qf8 {[%emt 0:00:15]} 28. Kg2 {[%emt 0:01:05]} Rbb8 {[%emt 0:02:14]} (28... Rxa3 $2 29. Rxa3 Qe8 30. Qxe8+ Rxe8 31. Rxa4 $18) 29. Ra2 {[%emt 0:01:06]} Rd8 {[%emt 0:01:18]} 30. Rd7 {[%emt 0:00:38]} Rxd7 {[%emt 0:03:00]} 31. Qxd7 {[%emt 0:00:01]} Be7 {[%emt 0:00:07]} ({Better is} 31... Qc8 $15 32. Qb5 Qc3) 32. Qc6 {[%emt 0:01:01]} (32. d5 $11) 32... Ra5 {[%emt 0:02:28]} (32... Bxa3 $2 33. Rxa3 Qxa3 34. Qxa8+ $18) (32... Qc8 $15 33. d5 Qxc6 34. dxc6 Rc8) 33. Rc2 {[%emt 0:00:31]} Bxa3 {[%emt 0:09:41]} 34. Qb7 {[%emt 0:00:28]} (34. Ra2 $15) 34... Ra8 $17 {[%emt 0:00:58]} 35. Rc7 {[%emt 0:00:18]} Rb8 {[%emt 0:02:03]} (35... Bd6 36. Rxf7 Qxf7 37. Qxa8+ Kh7 38. Qxa4 $16) 36. Qa7 {[%emt 0:00:20]} (36. Qc6 $17) 36... Bd6 $19 {[%emt 0:00:17]} 37. Rd7 $2 {[%emt 0:00:20]} (37. Rc6 Ra8 38. Qb7) 37... a3 $19 {[%emt 0:00:17]} 38. d5 {[%emt 0:00:42]} Ra8 {[%emt 0:01:14]} (38... exd5 39. Rxd6 Ra8 (39... Qxd6 40. Bf4 $14) 40. Qc5 $11 (40. Rxd5 $2 Rxa7 41. Rd1 Qa8+ 42. f3 Re7 $19)) (38... e5 $142 39. Qa6 Ra8) 39. Qb6 $2 {[%emt 0:00:11]} (39. Qb7 a2 40. Bd4) 39... a2 {[%emt 0:00:46]} (39... e5 $142 40. Bd2 (40. Qxd6 $2 Qxd6 41. Rxd6 a2 $19) 40... Bc5) 40. Bd4 $19 {[%emt 0:00:06]} e5 $1 {[%emt 0:00:46]} (40... a1=B 41. Bxa1 Bc5 42. Qb2 exd5 43. Rxd5 $11) (40... a1=R 41. Bxa1 Bc5 42. Qb2 exd5 43. Rxd5 $11) 41. Ba1 {[%emt 0:02:40]} Bc5 {[%emt 0:03:39]} 42. Qc6 {[%emt 0:05:38]} Qe8 $2 {[%emt 0:08:28]} (42... Kh7 $19 {White must now prevent ...Bd4.} 43. Qb7 Qg8) 43. Rb7 {[%emt 0:10:17] [#]} Qxc6 $1 {[%emt 0:13:07]} 44. dxc6 {[%emt 0:00:15]} Rc8 {[%emt 0:00:07]} (44... Bd4 $2 45. c7 Bxa1 46. Rb8+ $18) 45. Rb2 {[%emt 0:11:37]} Rxc6 {[%emt 0:00:33]} 46. Rxa2 {[%emt 0:04:18]} Bd6 {[%emt 0:00:12]} 47. Kf3 {[%emt 0:00:00]} f5 {[%emt 0:00:45]} 48. Ra5 {[%emt 0:00:00]} e4+ {[%emt 0:04:17]} 49. Ke3 {[%emt 0:00:00]} Bc5+ {[%emt 0:01:24]} (49... g6 $15) 50. Bd4 $11 {[%emt 0:00:00]} Bxd4+ {[%emt 0:00:29]} 51. Kxd4 {[%emt 0:00:00]} g6 {[%emt 0:00:25]} 52. Ke5 {[%emt 0:00:14]} h5 {[%emt 0:01:18]} 53. Ra7 {[%emt 0:00:41]} Kf8 {[%emt 0:00:46]} 54. h4 {[%emt 0:01:39]} Rb6 {[%emt 0:00:21]} 55. Ra3 {[%emt 0:01:13]} Kg7 {[%emt 0:00:18]} 56. f3 {[%emt 0:00:24]} exf3 {[%emt 0:00:40]} 57. Rxf3 {[%emt 0:00:01]} (57. Kf4 $11 {might be stronger.}) 57... Rb4 $17 {[%emt 0:00:10]} 58. Re3 {[%emt 0:01:01]} Rg4 {[%emt 0:00:29]} (58... Kf7 $17) 59. Ra3 {[%emt 0:00:41]} (59. Rc3 $11) 59... Re4+ $17 {[%emt 0:00:04]} 60. Kd5 {[%emt 0:00:04]} Re7 {[%emt 0:01:18]} 61. Kd6 {[%emt 0:00:21]} (61. Rb3 $17 {is a better defense.}) 61... Kf6 $19 {[%emt 0:00:21]} 62. Rb3 $2 {[%emt 0:00:51][%mdl 8192]} (62. Kc5 $17) 62... Re8 $2 {[%emt 0:00:19]} (62... f4 $19 {is more deadly.} 63. Rf3 Re4 (63... Re6+ 64. Kd5 $15)) 63. Ra3 $2 {[%emt 0:01:20][%mdl 8192]} (63. Kd5 $17) 63... g5 $19 {[%emt 0:01:28]} 64. Kd5 {[%emt 0:00:00]} gxh4 {[%emt 0:00:31]} 65. gxh4 {[%emt 0:00:00]} f4 {[%emt 0:00:24]} 66. Ra7 {[%emt 0:00:53]} Kf5 {[%emt 0:00:22]} 67. Rg7 {[%emt 0:00:10]} Rd8+ {[%emt 0:00:13]} 68. Kc4 {[%emt 0:00:03]} f3 {[%emt 0:02:46]} 0-1

[Event "Festival Groningen-A 2024"]
[Site "Groningen"]
[Date "2024.12.21"]
[Round "1.11"]
[White "Palchuk, Andrii"]
[Black "Mareau, Timothe"]
[Result "1/2-1/2"]
[ECO "A87"]
[WhiteElo "2372"]
[BlackElo "2168"]
[Annotator "TA"]
[PlyCount "43"]
[EventDate "2024.12.21"]
[EventType "swiss"]
[EventCountry "NED"]
[SourceTitle "playchess.com"]
[Source "ChessBase"]
[SourceQuality "1"]
[TimeControl "40/5400+30:1800+30"]

{[%evp 12,43,39,12,12,17,6,14,15,17,16,-7,0,0,0,0,0,-5,-23,-35,43,7,6,0,0,0,12,7,0,-14,-8,-26,0,-12]} 1. d4 {[%emt 0:15:05]} f5 {[%emt 0:00:38]} 2. g3 {[%emt 0:00:30]} Nf6 {[%emt 0:00:16]} 3. Bg2 {[%emt 0:00:07]} g6 {[%emt 0:00:09]} 4. Nf3 {[%emt 0:01:07]} Bg7 {[%emt 0:00:19]} 5. O-O {[%emt 0:00:06]} d6 {[%emt 0:00:08]} 6. c4 {[%emt 0:03:59]} O-O {[%emt 0:00:12]} 7. Qc2 {[%emt 0:02:56]} Qe8 {[%emt 0:06:10]} 8. d5 {[%emt 0:07:21]} e5 {[%emt 0:03:54]} 9. dxe6 {[%emt 0:00:43]} Nc6 {[%emt 0:00:06]} 10. Nc3 {[%emt 0:20:53]} Bxe6 {[%emt 0:04:29]} 11. Nb5 {[%emt 0:00:12]} Nb4 {[%emt 0:25:40]} 12. Qc3 {[%emt 0:03:30][%cal Ob5c7] Strongly threatening Nxc7!.} Na6 {[%emt 0:11:44]} 13. Qc2 {[%emt 0:04:57]} Nb4 {[%emt 0:07:48]} 14. Qd1 {[%emt 0:07:04]} Qe7 {[%emt 0:09:33]} 15. Bd2 {[%emt 0:04:08]} Bxc4 {[%emt 0:03:55]} ({Black should try} 15... Nc6 $15) 16. Na3 {[%emt 0:00:05]} d5 {[%emt 0:04:59]} (16... Bxe2 {is interesting.} 17. Qb3+ Qf7 18. Qxb4 Bxf1 19. Bxf1 Ne4) 17. Nxc4 {[%emt 0:05:12]} dxc4 {[%emt 0:00:06]} 18. Qc1 {[%emt 0:02:24]} Nbd5 {[%emt 0:03:15]} 19. Qxc4 {[%emt 0:00:11]} c6 {[%emt 0:01:30]} 20. Rad1 {[%emt 0:00:50]} Rfe8 {[%emt 0:00:29]} 21. Rfe1 {[%emt 0:00:39]} Kh8 {[%emt 0:01:04]} 22. Bc1 {[%emt 0:04:42]} 1/2-1/2

[Event "Festival Groningen-A 2024"]
[Site "Groningen"]
[Date "2024.12.21"]
[Round "1.12"]
[White "Hummel, Paul"]
[Black "Slagboom, Leandro"]
[Result "1/2-1/2"]
[ECO "E62"]
[WhiteElo "2160"]
[BlackElo "2370"]
[Annotator "TA"]
[PlyCount "70"]
[EventDate "2024.12.21"]
[EventType "swiss"]
[EventCountry "NED"]
[SourceTitle "playchess.com"]
[Source "ChessBase"]
[SourceQuality "1"]
[TimeControl "40/5400+30:1800+30"]

{[%evp 16,70,47,48,59,50,97,81,90,43,54,43,71,71,59,50,41,55,55,42,54,56,49,48,131,131,138,62,59,27,45,44,65,4,6,4,4,5,4,8,37,32,58,86,86,52,37,22,37,1,1,1,1,1,1,1,1]} 1. d4 {[%emt 0:00:05]} Nf6 {[%emt 0:00:17]} 2. c4 {[%emt 0:00:05]} g6 {[%emt 0:00:19]} 3. Nf3 {[%emt 0:00:15]} Bg7 {[%emt 0:00:05]} 4. g3 {[%emt 0:00:05]} d6 {[%emt 0:00:38]} 5. Bg2 {[%emt 0:00:05]} O-O {[%emt 0:00:31]} 6. O-O {[%emt 0:00:07]} Bg4 {[%emt 0:01:11]} 7. h3 {[%emt 0:02:00]} Bxf3 {[%emt 0:02:17]} 8. Bxf3 {[%emt 0:00:13]} Nc6 {[%emt 0:00:07]} 9. Nc3 {[%emt 0:01:24]} e5 {[%emt 0:01:02]} 10. Bxc6 {[%emt 0:06:05]} exd4 {[%emt 0:08:02]} (10... bxc6 $14 {deserves consideration.} 11. dxe5 dxe5) 11. Bxb7 $16 {[%emt 0:03:55]} Rb8 {[%emt 0:00:06][%cal Od4c3]} 12. Bg2 {[%emt 0:06:20]} ({White should try} 12. Qxd4 $16 Rxb7 13. Qd3) 12... dxc3 $14 {[%emt 0:00:06]} 13. bxc3 {[%emt 0:00:01]} Nd7 {[%emt 0:03:37]} 14. Be3 {[%emt 0:03:01]} Nc5 {[%emt 0:08:45]} 15. Qc2 {[%emt 0:13:33]} Qf6 {[%emt 0:01:53]} 16. Bxc5 {[%emt 0:07:11]} dxc5 {[%emt 0:02:46]} 17. Rad1 {[%emt 0:04:35]} Qxc3 {[%emt 0:17:47]} 18. Qxc3 {[%emt 0:01:11]} Bxc3 {[%emt 0:00:05]} 19. Rd3 {[%emt 0:02:33]} Ba5 {[%emt 0:03:48]} (19... Bb4 $14) 20. Ra3 $16 {[%emt 0:04:57]} Bb6 {[%emt 0:00:12] [#]} 21. Rd1 {[%emt 0:01:49] White is more active.} (21. Ra6 $1 $16) 21... Rfd8 $14 {[%emt 0:01:30]} 22. Rad3 {[%emt 0:01:37]} Rxd3 {[%emt 0:00:59]} 23. Rxd3 $11 {[%emt 0:00:02][%mdl 4096] Endgame KRB-KRB} Ba5 {[%emt 0:02:21]} 24. Rd7 {[%emt 0:12:31]} (24. Bd5 $14) 24... Rb1+ {[%emt 0:02:48]} 25. Kh2 {[%emt 0:00:04]} Rb2 $1 {[%emt 0:00:17][%csl LRa2,LRe2]} 26. Bd5 {[%emt 0:00:44]} Rxe2 {[%emt 0:01:24]} 27. Rxf7 {[%emt 0:01:51] Re7+ would now be deadly.} Kh8 {[%emt 0:00:12]} 28. g4 {[%emt 0:05:08]} g5 {[%emt 0:07:13]} 29. a4 {[%emt 0:06:36]} Bc3 {[%emt 0:02:22]} 30. Kg2 {[%emt 0:00:20]} (30. Rxc7 $2 Be5+ (30... Rxf2+ 31. Kh1 $14) 31. Kg2 Bxc7 $19) 30... Bd4 {[%emt 0:00:51]} 31. a5 {[%emt 0:03:06]} Ra2 {[%emt 0:04:21]} 32. Be4 {[%emt 0:05:58]} Kg8 {[%emt 0:00:36]} 33. Rxc7 {[%emt 0:02:08]} (33. Bxh7+ $2 {loses.} Kxf7 34. Bb1 Rxa5 $19 (34... Rxf2+ $2 35. Kg3 $19)) 33... Rxf2+ {[%emt 0:00:35]} 34. Kg3 {[%emt 0:02:09]} Be5+ {[%emt 0:02:05]} 35. Kxf2 {[%emt 0:00:03]} Bxc7 {[%emt 0:00:05]} 1/2-1/2

[Event "Festival Groningen-A 2024"]
[Site "Groningen"]
[Date "2024.12.21"]
[Round "1.13"]
[White "Smeets, Kobe"]
[Black "Duson, Robin"]
[Result "1-0"]
[ECO "C95"]
[WhiteElo "2349"]
[BlackElo "2159"]
[Annotator "TA"]
[PlyCount "63"]
[EventDate "2024.12.21"]
[EventType "swiss"]
[EventCountry "NED"]
[SourceTitle "playchess.com"]
[Source "ChessBase"]
[SourceQuality "1"]
[TimeControl "40/5400+30:1800+30"]

{[%evp 30,63,31,8,93,100,94,95,83,68,83,95,177,177,193,177,208,217,258,268,277,226,300,313,295,278,293,297,280,282,29989,29990,29990,29991,29991,29992]} 1. e4 {[%emt 0:00:04]} e5 {[%emt 0:00:12]} 2. Nf3 {[%emt 0:00:15]} Nc6 {[%emt 0:00:13]} 3. Bb5 {[%emt 0:00:13][%cal Bf1b5,Bb5a4,Ba4b3,Bb3c2,Bc2d3][%mdl 32]} a6 {[%emt 0:00:27]} 4. Ba4 {[%emt 0:00:02]} Nf6 {[%emt 0:00:23]} 5. O-O {[%emt 0:00:07]} Be7 {[%emt 0:00:24]} 6. Re1 {[%emt 0:00:33]} b5 {[%emt 0:00:11]} 7. Bb3 {[%emt 0:00:02]} d6 {[%emt 0:00:24]} 8. c3 {[%emt 0:00:07]} O-O {[%emt 0:00:11]} 9. h3 {[%emt 0:00:06]} Nb8 {[%emt 0:00:55]} 10. d4 {[%emt 0:00:09]} Nbd7 {[%emt 0:00:19]} 11. Nbd2 {[%emt 0:00:06]} Bb7 {[%emt 0:00:32]} 12. Bc2 {[%emt 0:00:14]} Re8 {[%emt 0:01:10]} 13. Nf1 {[%emt 0:00:04]} Bf8 {[%emt 0:00:34]} 14. Ng3 {[%emt 0:00:07]} g6 {[%emt 0:00:39]} 15. a4 {[%emt 0:02:41]} Bg7 {[%emt 0:03:58]} 16. Bd3 {[%emt 0:00:53]} b4 {[%emt 0:10:14]} 17. dxe5 $16 {[%emt 0:04:53] White is more active.} ({Don't play} 17. cxb4 exd4 18. Bf4 Ne5 $11) 17... Nxe5 {[%emt 0:04:30]} 18. Nxe5 {[%emt 0:00:34]} ({Reject} 18. cxb4 Nxf3+ 19. gxf3 Nd7 $11) 18... Rxe5 {[%emt 0:02:41] White is better.} 19. cxb4 {[%emt 0:05:10]} d5 {[%emt 0:09:04][%cal Bd6d5,Bd5e4][%mdl 32]} 20. f4 {[%emt 0:02:58]} Rxe4 {[%emt 0:07:22]} (20... Re8 $16 {keeps fighting.}) 21. Nxe4 $18 {[%emt 0:00:51]} dxe4 {[%emt 0:04:01]} 22. Bc4 {[%emt 0:00:17]} Qe7 {[%emt 0:04:20]} 23. Qb3 {[%emt 0:02:36]} Rd8 {[%emt 0:05:51]} 24. Be3 {[%emt 0:10:46]} Nd5 {[%emt 0:04:34] [#]} 25. Bc5 {[%emt 0:04:41]} Qh4 {[%emt 0:01:51]} 26. Rad1 {[%emt 0:04:12]} Nxf4 {[%emt 0:08:01][%cal Od8d2]} 27. Bxf7+ {[%emt 0:17:37]} Kh8 {[%emt 0:00:09]} 28. Qe3 {[%emt 0:01:34][%cal Oe3f4] Threatens to win with Qxf4!} Nd3 {[%emt 0:04:42]} 29. Rf1 {[%emt 0:11:05]} Nxb2 $2 {[%emt 0:01:58] [#]} (29... Nxc5 $18 30. bxc5 Rxd1 31. Rxd1 Qe7) 30. Qf4 {[%emt 0:01:40] White mates.} Qf6 {[%emt 0:08:30]} 31. Qxf6 {[%emt 0:00:08]} Bxf6 {[%emt 0:00:05]} 32. Rxd8+ {[%emt 0:00:15] White took control after the opening.   Weighted Error Value: White=0.01 (flawless) /Black=0.68.  Mistake:       	---       	Black=2      Inaccurate:     	---       	Black=1      OK:         	White=11    	Black=1      Best:        	White=1     	Black=1} 1-0

[Event "Festival Groningen-A 2024"]
[Site "Groningen"]
[Date "2024.12.21"]
[Round "1.14"]
[White "De Boer, Bas"]
[Black "Kollen, Zyon"]
[Result "0-1"]
[ECO "D35"]
[WhiteElo "2157"]
[BlackElo "2344"]
[Annotator "TA"]
[PlyCount "86"]
[EventDate "2024.12.21"]
[EventType "swiss"]
[EventCountry "NED"]
[SourceTitle "playchess.com"]
[Source "ChessBase"]
[SourceQuality "1"]
[TimeControl "40/5400+30:1800+30"]

{[%evp 12,85,0,0,4,0,5,6,0,0,0,0,0,0,46,0,0,0,13,-1,0,-3,0,-10,0,0,0,0,0,0,17,9,41,5,22,15,15,20,25,16,43,0,40,41,45,45,66,0,0,-30,-28,-38,-54,-68,-70,-197,-60,-230,-195,-782,-522,-29992,-29993,-29993,30,-29994,-29995,-29995,-29996,-29996,-29997,-29997,-29998,-29998,-29999,-29999]} 1. d4 {[%emt 0:00:03]} Nf6 {[%emt 0:00:09]} 2. c4 {[%emt 0:00:06]} e6 {[%emt 0:00:03]} 3. Nf3 {[%emt 0:00:06]} d5 {[%emt 0:01:56]} 4. cxd5 {[%emt 0:00:07]} exd5 {[%emt 0:00:04]} 5. Nc3 {[%emt 0:00:05]} c6 {[%emt 0:00:35]} 6. Qc2 {[%emt 0:00:07]} Bd6 {[%emt 0:01:46]} 7. Bg5 {[%emt 0:00:12]} Be6 {[%emt 0:04:48]} 8. e3 {[%emt 0:00:20]} Nbd7 {[%emt 0:00:20]} 9. Bd3 {[%emt 0:01:04]} Qc7 {[%emt 0:01:37]} 10. Bh4 {[%emt 0:07:14]} h6 {[%emt 0:05:55] Repels Ng5} 11. Bg3 {[%emt 0:05:04]} Bxg3 {[%emt 0:00:12]} 12. hxg3 {[%emt 0:00:01]} O-O-O {[%emt 0:04:41]} (12... O-O $11 {deserves consideration.}) 13. O-O-O {[%emt 0:02:19]} (13. b4 $14) 13... Ne8 {[%emt 0:06:01]} 14. Kb1 {[%emt 0:00:35]} Nd6 {[%emt 0:02:13]} 15. Ka1 {[%emt 0:02:42]} Rhe8 {[%emt 0:02:22]} 16. Rc1 {[%emt 0:02:19]} Kb8 {[%emt 0:02:16]} 17. Nd2 {[%emt 0:09:05]} Rc8 {[%emt 0:03:47]} 18. Ne2 {[%emt 0:03:13]} c5 {[%emt 0:16:04]} 19. dxc5 {[%emt 0:04:14]} Nxc5 {[%emt 0:00:09][%cal Od6e4]} 20. Nb3 {[%emt 0:02:21]} Nxd3 {[%emt 0:10:23]} 21. Qxd3 {[%emt 0:00:08]} Qb6 {[%emt 0:01:00]} 22. Qd4 {[%emt 0:07:39]} Ne4 {[%emt 0:03:19]} (22... Qxd4 23. Nbxd4 b6 24. b3 Rc5) 23. Qxb6 {[%emt 0:04:24]} (23. Rxc8+ {simplifies} Bxc8 24. Qxb6 axb6 25. Rf1) 23... axb6 {[%emt 0:00:01]} 24. Rxc8+ {[%emt 0:00:14]} Bxc8 {[%emt 0:04:44]} 25. Rf1 $1 {[%emt 0:00:23]} Bf5 {[%emt 0:03:22]} 26. Nf4 {[%emt 0:10:11][%cal Ob3d4]} Rd8 {[%emt 0:01:48]} 27. Nd4 {[%emt 0:01:15]} Bh7 {[%emt 0:01:04]} 28. g4 {[%emt 0:02:24]} g5 {[%emt 0:03:09]} 29. Nh3 {[%emt 0:04:36] A dynamic duo of knights.} (29. Nh5 $1 $14) 29... Re8 $11 {[%emt 0:05:09]} 30. Re1 {[%emt 0:06:45]} Nc5 {[%emt 0:04:30]} 31. Rh1 {[%emt 0:06:31][%cal Oh3g5] Threatens to win with Nxg5!.} Be4 $36 {[%emt 0:05:57][%mdl 2048] Black fights for an advantage.} 32. Rh2 {[%emt 0:03:16]} Nd3 {[%emt 0:01:20] Black is more active.} 33. Nb5 {[%emt 0:03:56]} (33. a4 $15) 33... Ne1 {[%emt 0:03:33]} (33... Rc8 $19 {[%cal Rc8c1]} 34. Nc3 b5) 34. Nd6 $2 {[%emt 0:02:44]} ({Better is} 34. a3 $15) 34... Rd8 {[%emt 0:00:28]} 35. Nxf7 $2 {[%emt 0:08:24]} (35. Nxe4 dxe4 36. a3) 35... Rc8 {[%emt 0:00:14][%cal Rc8c1]} 36. b3 {[%emt 0:00:06] [#]} Rc1+ $1 {[%emt 0:00:45]} (36... Bxg2 $2 37. Ne5 $17) 37. Kb2 {[%emt 0:00:02]} Nd3+ {[%emt 0:00:23]} 38. Ka3 {[%emt 0:00:38]} Rc5 {[%emt 0:00:18][%cal Rc5a5]} 39. b4 {[%emt 0:00:14]} Rc3+ {[%emt 0:00:10]} 40. Ka4 {[%emt 0:00:14]} Nb2+ {[%emt 0:00:13]} 41. Kb5 {[%emt 0:30:41]} Bd3+ {[%emt 0:30:22]} 42. Kxb6 {[%emt 0:00:33]} Rc6+ {[%emt 0:00:07]} 43. Ka5 {[%emt 0:00:03]} b6# {[%emt 0:00:20]} 0-1

[Event "Festival Groningen-A 2024"]
[Site "Groningen"]
[Date "2024.12.21"]
[Round "1.15"]
[White "Labruyere, Roger"]
[Black "Nicolai, Amir"]
[Result "1-0"]
[ECO "B33"]
[WhiteElo "2344"]
[BlackElo "2156"]
[Annotator "TA"]
[PlyCount "103"]
[EventDate "2024.12.21"]
[EventType "swiss"]
[EventCountry "NED"]
[SourceTitle "playchess.com"]
[Source "ChessBase"]
[SourceQuality "1"]
[TimeControl "40/5400+30:1800+30"]

{[%evp 24,103,32,0,49,12,10,12,20,-6,0,-4,-5,-18,-12,0,0,-85,-77,-75,-84,-77,-85,-83,-90,-67,-73,-82,-73,-110,-84,-116,-57,-101,-43,-100,0,0,47,74,73,70,44,58,218,171,177,172,171,173,166,195,145,152,216,131,498,103,133,92,91,92,186,200,194,62,60,79,141,144,145,156,155,156,161,8,544,542,1020,972,29979,29980]} 1. e4 {[%emt 0:03:06]} c5 {[%emt 0:00:06]} 2. Nf3 {[%emt 0:00:04][%cal Bg1f3,Bf3d4,Bd4b5,Bb5a3,Ba3c2][%mdl 32]} Nc6 {[%emt 0:00:05]} 3. d4 {[%emt 0:00:08]} cxd4 {[%emt 0:00:05]} 4. Nxd4 {[%emt 0:00:03]} Nf6 {[%emt 0:00:05]} 5. Nc3 {[%emt 0:00:19]} e5 {[%emt 0:00:07]} 6. Ndb5 {[%emt 0:01:07]} d6 {[%emt 0:00:12]} 7. Bg5 {[%emt 0:01:55]} a6 {[%emt 0:00:09]} 8. Na3 {[%emt 0:00:04]} b5 {[%emt 0:00:04]} 9. Nd5 {[%emt 0:01:23]} Be7 {[%emt 0:00:11]} 10. Bxf6 {[%emt 0:00:09]} Bxf6 {[%emt 0:00:04]} 11. c3 {[%emt 0:00:13]} O-O {[%emt 0:02:28]} 12. Nc2 {[%emt 0:00:26]} Rb8 {[%emt 0:00:08]} 13. Be2 {[%emt 0:01:22]} g6 {[%emt 0:05:38]} (13... Bg5 $11) 14. Bg4 {[%emt 0:06:42]} Bb7 {[%emt 0:10:36]} 15. O-O {[%emt 0:04:18]} Bg5 {[%emt 0:04:15]} 16. a4 {[%emt 0:23:00]} bxa4 {[%emt 0:03:45]} 17. Rxa4 {[%emt 0:03:30]} Ne7 {[%emt 0:06:02]} 18. b4 {[%emt 0:03:24]} Nxd5 {[%emt 0:18:30]} 19. exd5 {[%emt 0:00:21]} Qc7 {[%emt 0:00:10]} 20. Qd3 {[%emt 0:09:48]} (20. Ra3 $1 $11) 20... f5 {[%emt 0:04:39]} 21. Be2 {[%emt 0:01:05]} e4 $1 $36 {[%emt 0:02:41][%mdl 2048] Black is really pushing.} 22. Qg3 {[%emt 0:01:55][%csl LRa6,LRg5]} Bf6 {[%emt 0:02:11]} 23. c4 {[%emt 0:02:03]} Bxd5 {[%emt 0:01:39]} 24. Rxa6 {[%emt 0:10:57]} Be5 $1 {[%emt 0:19:33] This pair of bishops is nice.} 25. Qb3 {[%emt 0:00:12]} Bb7 {[%emt 0:02:14]} 26. Ra3 {[%emt 0:03:35]} Kh8 {[%emt 0:04:05][%cal Od6d5]} 27. h3 {[%emt 0:05:00]} g5 {[%emt 0:02:47]} ({Black should play} 27... f4 $17 28. Ne1 Qb6) 28. Rd1 $15 {[%emt 0:01:07]} Qg7 {[%emt 0:01:09]} (28... f4 $17 29. Bg4 Qf7) 29. c5 {[%emt 0:01:44]} ({White should play} 29. Ra7 $1 $15) 29... d5 {[%emt 0:01:04]} (29... dxc5 $17 {and ...g4 should not be overlooked} 30. Ra5 cxb4) 30. Ra7 $11 {[%emt 0:00:58][%cal Oc5c6]} Ra8 {[%emt 0:03:05]} (30... Qf6 $11 {is superior.}) 31. Rxa8 $14 {[%emt 0:02:25]} Bxa8 {[%emt 0:00:12]} 32. b5 {[%emt 0:00:32]} d4 {[%emt 0:01:32]} 33. c6 {[%emt 0:00:50][%cal Bc5c6,Bc6c7][%mdl 32]} Rb8 $2 {[%emt 0:04:38]} (33... g4 $1 $14) 34. Qe6 {[%emt 0:01:49]} d3 {[%emt 0:01:09] [#]} 35. Bxd3 $1 {[%emt 0:00:04][%mdl 512]} exd3 {[%emt 0:00:07]} 36. Rxd3 {[%emt 0:00:02]} Qf6 {[%emt 0:01:53]} 37. Qxf6+ {[%emt 0:04:20]} (37. Qd7 Rxb5 38. f4 Rb1+ (38... gxf4 39. Qd8+ Kg7 40. c7 $17) (38... Bxf4 $2 39. c7 $18) (38... Bxc6 39. fxe5 Rxe5 40. Qa7 $11) 39. Kf2 gxf4 $19) 37... Bxf6 {[%emt 0:00:01]} 38. c7 {[%emt 0:00:09]} Rc8 {[%emt 0:00:09]} (38... Re8 $16 39. Ne3 Bb7) 39. b6 {[%emt 0:00:05][%mdl 1024] White has strong compensation.} Be4 $2 {[%emt 0:01:34][%mdl 8192] [#]} (39... Kg7 $16 {is more resistant.} 40. Rd7+ Kg6) 40. f3 $2 {[%emt 0:00:48]} Bb7 {[%emt 0:00:50]} (40... Bxd3 $2 41. b7 Ba6 42. b8=Q $18 (42. b8=B $2 Be7 $19)) 41. Ne3 {[%emt 0:33:28]} Be7 {[%emt 0:03:21]} 42. Kh1 {[%emt 0:00:00]} Rf8 {[%emt 0:11:42]} (42... Rg8 $16 {was called for.}) 43. Rd7 $18 {[%emt 0:00:00]} Bc5 {[%emt 0:01:45] [#]} 44. Nc4 {[%emt 0:00:00]} ({Only move:} 44. Rd8 $1 $18 {[%cal Rd8b8] Rb8 is the strong threat.} Ba6 45. Nxf5) 44... Rc8 {[%emt 0:06:34]} 45. Kh2 {[%emt 0:00:00]} f4 {[%emt 0:02:39] [#]} (45... Kg8 $142) 46. h4 $1 $16 {[%emt 0:00:00][%mdl 512]} gxh4 {[%emt 0:02:29]} 47. Nd6 {[%emt 0:00:00] White is more active.} Bxd6 {[%emt 0:01:34]} 48. Rxd6 {[%emt 0:00:00]} Kg7 {[%emt 0:00:04]} 49. Kh3 $2 {[%emt 0:00:00]} (49. Rd4 $18) 49... Rf8 $2 {[%emt 0:00:53][%mdl 8192]} (49... Kf7 $11) 50. Rd8 $1 $18 {[%emt 0:00:00]} (50. Kxh4 Rf6 51. Rd7+ Kg6 $11) 50... Rf6 {[%emt 0:00:25]} 51. Rb8 {[%emt 0:00:00]} ({And not} 51. c8=B Bxc8+ 52. Rxc8 Rxb6 $11) (51. Kxh4 Rh6+ 52. Kg4 Rxb6 $11) 51... Ba6 {[%emt 0:01:04]} 52. b7 {[%emt 0:00:00]} ({Not} 52. c8=R Bxc8+ 53. Rxc8 Rxb6 $14) 1-0